bitfinex/quotes_SOLUSD_20220311
["timestamp","ask_amount","ask_price","bid_price","bid_amount"]
[1646966130312,6.152,81.299,81.24,18.4557]
[1646966130514,3.04447957,81.299,81.241,6.0]
[1646966130714,6.152,81.308,81.241,6.0]
[1646966130913,6.0,81.307,81.241,6.0]
[1646966131112,6.152,81.306,81.241,6.0]
[1646966132114,6.152,81.306,81.25,18.4513]
[1646966132317,6.0,81.305,81.25,18.4513]
[1646966132516,6.151,81.304,81.251,6.0]
[1646966132715,6.151,81.304,81.241,6.0]
[1646966132923,18.4539,81.3,81.241,6.0]
[1646966133120,6.152,81.299,81.24,18.454]
[1646966133419,6.152,81.299,81.221,6.0]
[1646966133621,22.7231,81.298,81.222,0.25]
[1646966133819,6.152,81.297,81.222,0.25]
[1646966134220,6.152,81.297,81.25,18.4534]
[1646966134421,6.152,81.309,81.251,48.78967832]
[1646966134629,6.151,81.318,81.252,6.25]
[1646966134824,22.7231,81.319,81.252,6.25]
[1646966135021,22.7231,81.319,81.252,24.76264339]
[1646966135222,22.7231,81.319,81.253,6.0]
[1646966135423,22.7231,81.319,81.254,0.25]
[1646966135823,6.151,81.318,81.254,0.25]
[1646966136222,6.151,81.318,81.27,18.4404]
[1646966137331,6.151,81.318,81.271,6.0]
[1646966137628,6.151,81.318,81.28,18.4458]
[1646966138425,6.151,81.318,81.281,6.0]
[1646966138626,22.7231,81.319,81.281,12.49]
[1646966138827,6.15,81.328,81.281,12.49]
[1646966139026,6.15,81.328,81.29,18.4437]
[1646966139227,6.149,81.343,81.291,6.0]
[1646966139428,6.149,81.343,81.281,12.49]
[1646966140230,6.149,81.35,81.281,12.49]
[1646966141231,24.5914,81.35,81.3,17.9409]
[1646966142133,18.4424,81.35,81.3,17.9409]
[1646966142334,3.04447957,81.349,81.3,17.9409]
[1646966142731,6.0,81.348,81.3,17.9409]
[1646966142932,3.04447957,81.349,81.3,17.9409]
[1646966143134,3.04447957,81.348,81.3,17.9409]
[1646966143832,6.148,81.347,81.3,17.9409]
[1646966144233,6.0,81.346,81.3,17.9409]
[1646966144432,6.148,81.345,81.3,17.9409]
[1646966144637,6.148,81.347,81.3,17.9409]
[1646966145036,6.0,81.346,81.3,17.9409]
[1646966145233,6.148,81.345,81.3,17.9409]
[1646966145434,6.148,81.347,81.3,17.9409]
[1646966146236,3.04447957,81.358,81.3,23.8209]
[1646966146436,6.148,81.368,81.3,23.8209]
[1646966146636,6.147,81.373,81.32,18.4323]
[1646966146835,6.146,81.384,81.321,49.00486099]
[1646966147439,6.146,81.387,81.322,6.0]
[1646966147641,6.144,81.396,81.323,0.25]
[1646966147837,6.144,81.41,81.323,26.75597672]
[1646966148038,6.144,81.416,81.33,18.4327]
[1646966148239,6.144,81.416,81.331,6.0]
[1646966148638,3.04447957,81.417,81.331,6.0]
[1646966148841,3.04447957,81.41,81.332,0.25]
[1646966149042,6.144,81.409,81.332,0.25]
[1646966149239,6.144,81.409,81.334,53.23371672]
[1646966149438,6.144,81.409,81.335,6.0]
[1646966150247,3.04447957,81.41,81.351,49.7666228]
[1646966150443,3.04447957,81.42,81.352,6.0]
[1646966150847,6.144,81.428,81.353,0.25]
[1646966151044,6.143,81.433,81.353,0.25]
[1646966151245,6.143,81.433,81.36,18.4252]
[1646966151445,6.0,81.432,81.361,6.25]
[1646966151666,6.0,81.433,81.361,6.25]
[1646966152146,24.8356,81.445,81.361,6.25]
[1646966152344,6.0,81.444,81.361,6.25]
[1646966153146,6.0,81.444,81.38,18.4178]
[1646966153348,24.8356,81.445,81.382,64.57337514]
[1646966153648,24.8356,81.445,81.383,6.0]
[1646966154048,3.04447957,81.444,81.383,6.0]
[1646966154847,24.8356,81.445,81.383,6.0]
[1646966155048,3.04447957,81.444,81.383,6.0]
[1646966155252,3.04447957,81.444,81.39,18.4163]
[1646966155454,3.04447957,81.444,81.391,6.0]
[1646966156151,3.04447957,81.444,81.383,6.0]
[1646966156356,3.04447957,81.444,81.4,18.4172]
[1646966156551,3.04447957,81.444,81.4,5.98]
[1646966157355,6.141,81.449,81.411,48.53341827]
[1646966157555,114.4,81.45,81.411,48.53341827]
[1646966158156,114.4,81.45,81.412,6.0]
[1646966158354,114.4,81.45,81.42,18.4094]
[1646966158555,114.4,81.45,81.42,23.6894]
[1646966158956,114.4,81.45,81.42,5.28]
[1646966160278,114.4,81.45,81.42,23.694]
[1646966163187,114.4,81.45,81.38,61.3889]
[1646966163386,117.44447957,81.45,81.381,6.0]
[1646966163588,6.141,81.449,81.382,48.05726948]
[1646966163885,6.0,81.448,81.382,48.05726948]
[1646966164086,6.141,81.447,81.382,48.05726948]
[1646966164288,9.18547957,81.447,81.39,18.4206]
[1646966164491,3.04447957,81.446,81.39,18.4206]
[1646966165503,3.04447957,81.446,81.391,6.0]
[1646966165691,3.04447957,81.446,81.4,18.4175]
[1646966166591,3.04447957,81.446,81.401,6.0]
[1646966169194,114.4,81.45,81.41,18.4154]
[1646966169593,114.4,81.45,81.41,25.3354]
[1646966169798,114.4,81.45,81.411,6.0]
[1646966169995,3.04447957,81.476,81.42,14.54]
[1646966170194,6.138,81.496,81.43,18.4033]
[1646966170393,6.138,81.496,81.431,6.25]
[1646966170593,114.4,81.497,81.431,6.25]
[1646966171293,114.4,81.497,81.45,18.4022]
[1646966171495,12.136,81.496,81.451,6.0]
[1646966171692,12.136,81.496,81.407,29.67186403]
[1646966171693,15.18047957,81.496,81.407,29.67186403]
[1646966171893,15.18047957,81.496,81.421,6.25]
[1646966172496,45.6005,81.495,81.421,6.25]
[1646966172696,12.138,81.494,81.44,18.4087]
[1646966173496,12.138,81.494,81.441,6.0]
[1646966173697,12.138,81.494,81.44,18.4087]
[1646966173896,12.138,81.494,81.43,18.4109]
[1646966173897,3.04447957,81.493,81.43,18.4109]
[1646966174097,3.04447957,81.493,81.385,0.94]
[1646966174098,12.136,81.492,81.431,6.0]
[1646966174498,3.04447957,81.491,81.403,6.0]
[1646966174698,3.04447957,81.491,81.391,6.0]
[1646966174699,12.138,81.49,81.391,6.0]
[1646966174903,45.0878,81.49,81.388,6.0]
[1646966175099,3.04447957,81.489,81.383,6.0]
[1646966175302,12.139,81.488,81.383,6.0]
[1646966175502,35.05109796,81.488,81.383,6.0]
[1646966175700,3.04447957,81.487,81.383,6.0]
[1646966175904,12.139,81.486,81.383,6.0]
[1646966176102,22.5967,81.485,81.383,6.0]
[1646966176302,14.54,81.48,81.384,0.25]
[1646966176503,12.14,81.479,81.384,0.25]
[1646966176707,12.14,81.479,81.39,18.4206]
[1646966176902,27.46521205,81.478,81.391,6.0]
[1646966177103,12.139,81.477,81.391,6.0]
[1646966177402,27.46521205,81.476,81.391,6.0]
[1646966177603,12.139,81.475,81.384,0.25]
[1646966177803,34.8733,81.475,81.384,0.25]
[1646966178025,27.46521205,81.474,81.384,0.25]
[1646966178228,18.415,81.47,81.4,16.5761]
[1646966178428,12.139,81.469,81.401,6.0]
[1646966178725,42.64869162,81.469,81.401,6.0]
[1646966178926,27.46521205,81.468,81.401,6.0]
[1646966179125,12.139,81.467,81.401,6.0]
[1646966179326,15.18347957,81.467,81.401,6.0]
[1646966179528,39.60421205,81.467,81.401,6.0]
[1646966179727,3.04447957,81.466,81.401,6.0]
[1646966179927,12.139,81.465,81.401,6.0]
[1646966180129,18.4183,81.46,81.401,6.0]
[1646966180329,12.14,81.459,81.401,6.0]
[1646966180529,15.18447957,81.459,81.401,6.0]
[1646966180932,3.04447957,81.458,81.401,6.0]
[1646966181128,12.14,81.457,81.401,6.0]
[1646966181531,18.4189,81.45,81.401,6.0]
[1646966181729,6.0,81.449,81.391,6.0]
[1646966181930,9.04447957,81.449,81.391,6.0]
[1646966182131,3.04447957,81.448,81.391,6.0]
[1646966182331,6.0,81.447,81.391,6.0]
[1646966182733,9.18547957,81.446,81.391,6.0]
[1646966182930,6.0,81.445,81.391,6.0]
[1646966183131,6.141,81.444,81.391,6.0]
[1646966183434,6.141,81.444,81.4,16.5764]
[1646966183632,6.14,81.445,81.401,6.0]
[1646966184033,6.0,81.444,81.401,6.0]
[1646966184237,6.14,81.443,81.401,6.0]
[1646966184434,6.14,81.445,81.401,6.0]
[1646966184834,24.8402,81.455,81.41,16.5745]
[1646966185435,6.0,81.454,81.41,16.5745]
[1646966185635,6.0,81.453,81.41,16.5745]
[1646966185835,24.8402,81.455,81.41,16.5745]
[1646966186036,24.8402,81.455,81.401,6.0]
[1646966186437,6.0,81.454,81.401,6.0]
[1646966186635,24.8402,81.455,81.401,6.0]
[1646966186835,6.0,81.454,81.401,6.0]
[1646966187136,18.419,81.45,81.401,6.0]
[1646966187336,12.14,81.449,81.401,6.0]
[1646966187538,6.14,81.449,81.41,18.4163]
[1646966187737,6.14,81.454,81.411,6.0]
[1646966188137,24.8402,81.455,81.411,6.0]
[1646966188740,24.8402,81.455,81.4,6.0]
[1646966189139,24.8402,81.455,81.398,6.0]
[1646966189541,24.8402,81.455,81.391,6.0]
[1646966190140,24.8402,81.455,81.4,18.4181]
[1646966190341,24.8402,81.455,81.401,6.0]
[1646966190944,3.04447957,81.455,81.401,6.0]
[1646966191148,3.04447957,81.475,81.41,18.4163]
[1646966191347,3.04447957,81.475,81.411,67.07677997]
[1646966191544,9.18347957,81.485,81.411,67.07677997]
[1646966192443,9.18347957,81.485,81.411,6.0]
[1646966192645,9.18347957,81.485,81.42,18.4099]
[1646966192845,27.46521205,81.479,81.421,6.0]
[1646966193045,6.139,81.478,81.402,6.0]
[1646966193245,35.119,81.462,81.402,6.0]
[1646966193544,6.0,81.461,81.391,6.0]
[1646966193748,6.14,81.46,81.392,0.25]
[1646966193946,6.0,81.459,81.392,0.25]
[1646966194145,6.14,81.458,81.41,18.4159]
[1646966194347,6.139,81.461,81.411,6.0]
[1646966194747,6.0,81.46,81.411,6.0]
[1646966194946,6.139,81.459,81.411,6.0]
[1646966195147,6.139,81.461,81.42,18.4141]
[1646966195949,22.979,81.462,81.42,18.4141]
[1646966196351,22.979,81.462,81.411,6.0]
[1646966196550,9.18347957,81.461,81.383,6.0]
[1646966196749,33.09737957,81.461,81.384,0.25]
[1646966196950,3.04447957,81.46,81.39,61.3864]
[1646966197250,6.14,81.459,81.391,6.0]
[1646966197450,6.14,81.459,81.392,48.92346518]
[1646966197649,3.04447957,81.458,81.393,6.0]
[1646966197850,6.14,81.457,81.393,6.0]
[1646966198252,6.14,81.457,81.4,18.4171]
[1646966198451,6.14,81.457,81.401,6.0]
[1646966199056,6.14,81.457,81.393,6.0]
[1646966199851,6.14,81.457,81.394,6.14]
[1646966200050,6.14,81.457,81.395,6.0]
[1646966200251,6.14,81.457,81.41,18.4155]
[1646966200450,6.14,81.457,81.411,6.0]
[1646966200850,9.18447957,81.457,81.411,6.0]
[1646966206258,9.18447957,81.457,81.42,18.4139]
[1646966206456,9.18447957,81.457,81.421,6.0]
[1646966206660,123.4,81.449,81.334,61.34]
[1646966206956,9.18547957,81.448,81.341,23.694]
[1646966207158,24.6908,81.447,81.341,23.694]
[1646966207354,12.141,81.446,81.341,23.694]
[1646966207554,45.95280673,81.446,81.364,55.67641371]
[1646966207754,18.4221,81.44,81.364,55.67641371]
[1646966207954,12.142,81.439,81.364,55.67641371]
[1646966208156,15.18647957,81.439,81.341,23.694]
[1646966208356,75.55948865,81.439,81.341,23.694]
[1646966208555,54.36656904,81.438,81.341,23.694]
[1646966208755,12.142,81.437,81.341,23.694]
[1646966208956,18.4235,81.43,81.36,18.4238]
[1646966209158,12.142,81.429,81.37,59.2026556]
[1646966209556,15.18647957,81.429,81.37,59.2026556]
[1646966209756,3.04447957,81.428,81.37,59.2026556]
[1646966209957,3.04447957,81.428,81.38,18.4209]
[1646966211459,3.04447957,81.428,81.381,6.0]
[1646966214665,3.04447957,81.428,81.376,6.0]
[1646966214866,33.40768192,81.427,81.376,6.0]
[1646966215068,6.0,81.426,81.376,6.0]
[1646966215266,6.142,81.425,81.376,6.0]
[1646966215466,18.4255,81.42,81.376,6.0]
[1646966215666,12.142,81.419,81.376,6.0]
[1646966216067,15.18647957,81.419,81.376,6.0]
[1646966216272,3.04447957,81.418,81.376,6.0]
[1646966216465,12.142,81.417,81.376,6.0]
[1646966216666,6.142,81.417,81.376,6.0]
[1646966216866,3.04447957,81.416,81.376,6.0]
[1646966217069,6.142,81.415,81.376,6.0]
[1646966217266,6.0,81.414,81.376,6.0]
[1646966217468,6.142,81.413,81.376,6.0]
[1646966217668,9.18647957,81.413,81.376,6.0]
[1646966218269,6.0,81.412,81.376,6.0]
[1646966218469,12.142,81.411,81.376,6.0]
[1646966218671,6.142,81.411,81.376,6.0]
[1646966218870,6.142,81.412,81.376,6.0]
[1646966219495,3.04447957,81.413,81.376,6.0]
[1646966219699,6.0,81.412,81.376,6.0]
[1646966219897,3.04447957,81.413,81.376,6.0]
[1646966220499,6.0,81.412,81.376,6.0]
[1646966220698,3.04447957,81.413,81.376,6.0]
[1646966220898,6.0,81.412,81.376,6.0]
[1646966221299,6.142,81.419,81.376,6.0]
[1646966221500,6.142,81.423,81.376,6.0]
[1646966221800,6.0,81.422,81.376,6.0]
[1646966221998,6.142,81.421,81.376,6.0]
[1646966222201,6.0,81.42,81.376,6.0]
[1646966222400,6.142,81.419,81.376,6.0]
[1646966222700,3.04447957,81.419,81.376,6.0]
[1646966222899,15.18647957,81.418,81.352,6.0]
[1646966223101,6.0,81.417,81.357,12.82541716]
[1646966223300,6.143,81.416,81.358,6.0]
[1646966223501,9.18747957,81.416,81.358,6.0]
[1646966223702,18.428,81.41,81.358,6.0]
[1646966223899,6.143,81.409,81.358,6.0]
[1646966224099,9.18747957,81.409,81.358,6.0]
[1646966224400,3.04447957,81.408,81.358,6.0]
[1646966224803,3.04447957,81.408,81.36,16.5836]
[1646966225002,3.04447957,81.408,81.361,6.0]
[1646966226204,3.04447957,81.408,81.358,6.0]
[1646966226404,6.143,81.407,81.358,6.0]
[1646966226803,3.04447957,81.406,81.358,6.0]
[1646966227003,6.143,81.405,81.358,6.0]
[1646966227408,6.143,81.405,81.352,6.0]
[1646966227705,18.4308,81.4,81.347,12.82712288]
[1646966227907,6.144,81.399,81.347,12.82712288]
[1646966228105,9.18847957,81.399,81.347,12.82712288]
[1646966228303,6.144,81.399,81.347,12.82712288]
[1646966228502,9.04447957,81.398,81.347,12.82712288]
[1646966228703,6.144,81.397,81.347,12.82712288]
[1646966228905,6.0,81.396,81.347,12.82712288]
[1646966229104,6.144,81.395,81.347,12.82712288]
[1646966229704,6.144,81.395,81.34,18.4308]
[1646966229903,6.144,81.396,81.34,18.4308]
[1646966230804,18.433,81.39,81.334,12.82860729]
[1646966231005,6.144,81.389,81.335,6.0]
[1646966231205,3.04447957,81.395,81.334,12.82860729]
[1646966231406,3.04447957,81.388,81.334,12.82860729]
[1646966231604,6.144,81.387,81.324,6.40822296]
[1646966231803,6.0,81.386,81.308,12.8308657]
[1646966232004,6.146,81.385,81.309,6.0]
[1646966232203,18.4349,81.38,81.31,18.4379]
[1646966232404,12.146,81.379,81.31,18.4379]
[1646966232607,39.00095628,81.379,81.31,18.4379]
[1646966232805,3.04447957,81.378,81.31,18.4379]
[1646966233005,12.146,81.377,81.31,18.4379]
[1646966233205,39.00095628,81.377,81.31,18.4379]
[1646966233407,3.04447957,81.376,81.31,18.4379]
[1646966233607,18.4385,81.37,81.294,32.09731652]
[1646966233807,12.147,81.369,81.283,24.207]
[1646966234009,15.19147957,81.369,81.295,12.83210591]
[1646966234208,12.147,81.369,81.295,12.83210591]
[1646966234416,29.89943585,81.368,81.284,10.3167167]
[1646966234613,18.4435,81.35,81.296,4.3167167]
[1646966234813,6.0,81.349,81.296,4.3167167]
[1646966235416,18.4435,81.35,81.291,4.3167167]
[1646966235616,6.0,81.349,81.291,4.3167167]
[1646966235815,6.0,81.349,81.29,18.441]
[1646966236418,6.148,81.348,81.29,18.441]
[1646966236718,6.0,81.347,81.29,18.441]
[1646966237121,6.0,81.348,81.29,18.441]
[1646966237321,6.148,81.347,81.29,18.441]
[1646966237521,6.0,81.346,81.29,18.441]
[1646966238249,23.2141,81.345,81.29,18.441]
[1646966238448,6.0,81.344,81.29,18.441]
[1646966239551,18.4443,81.34,81.29,18.441]
[1646966239753,6.0,81.339,81.29,18.441]
[1646966239951,6.0,81.344,81.29,18.441]
[1646966240753,23.2141,81.345,81.29,18.441]
[1646966240754,23.2141,81.345,81.291,6.0]
[1646966241053,6.148,81.344,81.301,59.96500757]
[1646966241453,6.148,81.365,81.301,59.96500757]
[1646966241651,30.6677,81.365,81.301,59.96500757]
[1646966242252,30.6677,81.365,81.31,18.4375]
[1646966244553,30.6677,81.365,81.311,6.0]
[1646966245555,30.6677,81.365,81.312,6.0]
[1646966245753,30.6677,81.365,81.301,59.96500757]
[1646966245754,18.4397,81.36,81.301,59.96500757]
[1646966245954,6.147,81.359,81.302,6.0]
[1646966246155,6.147,81.359,81.303,6.0]
[1646966246354,6.147,81.359,81.302,6.0]
[1646966246756,6.147,81.364,81.302,6.0]
[1646966246957,6.147,81.364,81.31,18.4385]
[1646966247358,6.147,81.364,81.311,6.0]
[1646966247961,6.147,81.364,81.312,6.0]
[1646966248161,6.147,81.364,81.31,18.4385]
[1646966250061,24.5197,81.365,81.311,6.0]
[1646966250262,24.5197,81.365,81.32,18.436]
[1646966250462,24.5197,81.365,81.321,53.41271927]
[1646966251463,46.77494813,81.39,81.33,18.4337]
[1646966251668,24.7211,81.388,81.33,18.4337]
[1646966251868,6.145,81.387,81.33,23.8937]
[1646966252062,24.7101128,81.408,81.331,6.25]
[1646966252262,3.04447957,81.417,81.331,6.25]
[1646966252461,6.0,81.416,81.34,18.4222]
[1646966252663,6.0,81.416,81.342,61.85911441]
[1646966252862,27.75459237,81.415,81.343,6.0]
[1646966253063,6.0,81.414,81.343,6.0]
[1646966253265,33.75459237,81.414,81.343,6.0]
[1646966253461,83.3918633,81.413,81.343,6.0]
[1646966253663,18.4284,81.41,81.35,18.4288]
[1646966253861,12.144,81.409,81.35,18.4288]
[1646966254064,38.61147093,81.409,81.35,18.4288]
[1646966254262,41.6559505,81.409,81.343,6.0]
[1646966254462,41.6559505,81.409,81.332,23.3921]
[1646966254463,54.2220633,81.408,81.333,6.0]
[1646966254664,18.4307,81.4,81.34,18.4314]
[1646966254863,35.1698,81.399,81.34,18.4314]
[1646966255063,38.21427957,81.399,81.34,18.4314]
[1646966255466,3.04447957,81.398,81.34,18.4314]
[1646966255664,6.0,81.397,81.34,18.4314]
[1646966255867,6.0,81.397,81.323,29.4332]
[1646966255868,18.4332,81.39,81.33,18.4337]
[1646966256066,12.144,81.389,81.33,18.4337]
[1646966256265,15.18847957,81.389,81.33,18.4337]
[1646966256695,27.14887957,81.388,81.331,6.0]
[1646966256866,6.144,81.387,81.33,18.4337]
[1646966257068,9.18847957,81.387,81.33,18.4337]
[1646966257269,9.18847957,81.387,81.34,18.4304]
[1646966257667,6.0,81.386,81.34,18.4304]
[1646966257868,6.144,81.385,81.34,18.4304]
[1646966258076,6.144,81.386,81.34,18.4304]
[1646966258472,6.0,81.385,81.34,18.4304]
[1646966258669,6.144,81.384,81.34,18.4304]
[1646966258870,6.144,81.386,81.34,18.4304]
[1646966259371,6.0,81.385,81.341,6.0]
[1646966259570,9.18847957,81.387,81.34,18.4304]
[1646966260072,6.0,81.386,81.34,18.4304]
[1646966260273,9.18847957,81.387,81.34,18.4304]
[1646966261974,6.0,81.386,81.341,6.0]
[1646966262174,6.144,81.385,81.341,6.0]
[1646966262374,6.144,81.386,81.341,6.0]
[1646966262980,6.0,81.385,81.341,6.0]
[1646966263180,6.144,81.384,81.341,6.0]
[1646966263379,6.144,81.386,81.34,18.4304]
[1646966263581,6.0,81.385,81.34,18.4304]
[1646966263782,6.144,81.384,81.34,18.4304]
[1646966263981,6.144,81.386,81.34,18.4304]
[1646966265000,6.144,81.386,81.341,6.0]
[1646966265199,6.144,81.386,81.34,18.4304]
[1646966265999,6.0,81.385,81.34,18.4304]
[1646966266202,6.144,81.384,81.34,18.4304]
[1646966266400,6.144,81.386,81.34,18.4304]
[1646966267001,6.0,81.385,81.34,18.4304]
[1646966267201,3.04447957,81.387,81.34,18.4304]
[1646966267202,6.144,81.384,81.34,18.4304]
[1646966267401,6.144,81.386,81.34,18.4304]
[1646966267802,3.04447957,81.385,81.341,6.0]
[1646966268002,12.144,81.384,81.331,6.0]
[1646966268202,6.144,81.384,81.323,23.4332]
[1646966268404,6.0,81.383,81.323,23.4332]
[1646966271293,6.0,81.392,81.341,52.74651749]
[1646966271688,6.0,81.392,81.342,6.0]
[1646966271890,6.0,81.395,81.342,6.0]
[1646966272095,6.0,81.395,81.35,18.4247]
[1646966277006,6.144,81.394,81.35,18.4247]
[1646966277204,6.0,81.393,81.35,18.4247]
[1646966277404,6.144,81.392,81.35,18.4247]
[1646966277605,6.0,81.391,81.35,18.4247]
[1646966277806,6.144,81.39,81.35,18.4247]
[1646966278207,6.144,81.395,81.35,18.4247]
[1646966278706,6.0,81.394,81.35,18.4247]
[1646966278906,6.144,81.393,81.35,18.4247]
[1646966279109,6.144,81.395,81.35,18.4247]
[1646966279909,6.144,81.395,81.33,61.4295]
[1646966279910,6.144,81.395,81.34,18.4311]
[1646966280110,3.04447957,81.394,81.341,6.0]
[1646966280312,6.144,81.393,81.341,6.0]
[1646966280509,6.0,81.392,81.34,18.4311]
[1646966280711,6.144,81.391,81.34,18.4311]
[1646966282313,6.144,81.391,81.341,6.0]
[1646966282711,21.47757957,81.39,81.329,6.0]
[1646966282934,6.144,81.389,81.329,6.0]
[1646966283114,6.0,81.388,81.33,6.0]
[1646966283312,6.144,81.387,81.33,6.0]
[1646966283511,24.2543,81.386,81.33,6.0]
[1646966283711,6.144,81.385,81.324,6.0]
[1646966283913,9.18847957,81.385,81.324,6.0]
[1646966284111,6.144,81.385,81.33,18.4331]
[1646966284319,3.04447957,81.384,81.33,18.4331]
[1646966284512,6.144,81.383,81.331,6.0]
[1646966284812,3.04447957,81.382,81.33,18.4331]
[1646966285011,6.144,81.381,81.33,18.4331]
[1646966288022,6.0,81.38,81.33,18.4331]
[1646966288217,6.144,81.379,81.33,18.4331]
[1646966288417,6.144,81.381,81.33,18.4331]
[1646966289018,6.0,81.38,81.33,18.4331]
[1646966289219,6.144,81.379,81.33,18.4331]
[1646966289421,6.144,81.381,81.33,18.4331]
[1646966291845,6.0,81.38,81.33,18.4331]
[1646966292049,6.144,81.379,81.331,6.0]
[1646966292245,6.144,81.379,81.33,18.4331]
[1646966292445,6.144,81.381,81.33,18.4331]
[1646966292645,6.144,81.381,81.331,6.0]
[1646966293445,6.0,81.38,81.332,6.0]
[1646966293647,3.04447957,81.382,81.33,18.4331]
[1646966294247,6.0,81.381,81.33,18.4331]
[1646966294446,3.04447957,81.382,81.33,18.4331]
[1646966295047,3.04447957,81.382,81.331,6.0]
[1646966295247,3.04447957,81.382,81.33,18.4331]
[1646966295546,6.0,81.381,81.331,6.0]
[1646966295747,3.04447957,81.382,81.331,6.0]
[1646966296449,3.04447957,81.382,81.33,18.4331]
[1646966297547,40.50080426,81.381,81.33,18.4331]
[1646966297746,34.50080426,81.381,81.33,18.4331]
[1646966297945,6.0,81.38,81.33,18.4331]
[1646966298146,34.50080426,81.381,81.33,18.4331]
[1646966298747,6.0,81.38,81.33,18.4331]
[1646966298951,6.144,81.381,81.33,18.4331]
[1646966299347,6.0,81.38,81.33,18.4331]
[1646966299850,6.144,81.381,81.33,18.4331]
[1646966300249,6.0,81.38,81.33,18.4331]
[1646966300453,6.144,81.381,81.33,18.4331]
[1646966301053,6.0,81.38,81.33,18.4331]
[1646966301253,6.144,81.379,81.33,18.4331]
[1646966301450,31.40128383,81.379,81.321,12.82765697]
[1646966301654,15.19047957,81.378,81.322,6.0]
[1646966301851,70.31139663,81.378,81.312,6.0]
[1646966302054,3.04447957,81.377,81.306,6.0]
[1646966302260,12.146,81.376,81.306,6.0]
[1646966302453,38.9101128,81.376,81.306,6.0]
[1646966302657,27.12427957,81.375,81.307,4.3349318]
[1646966302851,12.146,81.374,81.308,6.0]
[1646966303052,41.95459237,81.374,81.308,6.0]
[1646966303253,18.4384,81.37,81.308,6.0]
[1646966303454,12.147,81.369,81.309,4.3349318]
[1646966303653,15.19147957,81.369,81.31,6.0]
[1646966303854,3.04447957,81.368,81.31,6.0]
[1646966304055,12.147,81.367,81.31,6.0]
[1646966304253,12.147,81.367,81.311,4.3349318]
[1646966304454,3.04447957,81.366,81.312,6.0]
[1646966304653,18.44,81.36,81.312,6.0]
[1646966304852,12.147,81.359,81.29,18.4423]
[1646966305055,22.8127,81.358,81.29,18.4423]
[1646966305254,12.147,81.357,81.29,18.4423]
[1646966305455,12.147,81.357,81.298,4.33601402]
[1646966305654,18.4419,81.35,81.298,4.33601402]
[1646966305856,12.148,81.349,81.268,6.4122432]
[1646966306057,38.9121128,81.349,81.271,6.0]
[1646966306254,55.12091706,81.348,81.271,6.0]
[1646966306455,12.149,81.347,81.271,10.33745156]
[1646966306658,18.4484,81.34,81.272,4.33745156]
[1646966306856,12.149,81.339,81.273,6.0]
[1646966307056,15.19347957,81.339,81.274,4.33745156]